[Event "FIN-ch 2018"]
[Site "Helsinki"]
[Date "2018.06.16"]
[Round "6"]
[White "Sipila, Vilka"]
[Black "Niemi, Kalle"]
[Result "0-1"]
[ECO "B13"]
[WhiteElo "2383"]
[BlackElo "2336"]
[Annotator "NA"]
[PlyCount "64"]
[EventDate "2018.06.13"]
[EventType "tourn"]
[EventCountry "FIN"]
[SourceTitle "playchess.com"]
[Source "ChessBase"]
[SourceQuality "1"]
[TimeControl "40/5400+30:1800+30"]

1. e4 {[%emt 0:00:00]} c6 {[%emt 0:00:18]} 2. d4 {[%emt 0:00:00]} d5 {[%emt 0:00:07]} 3. exd5 {[%emt 0:00:23]} cxd5 {[%emt 0:00:08]} 4. Bd3 {[%emt 0:00:04]} Nc6 {[%emt 0:00:26]} 5. c3 {[%emt 0:00:08]} Nf6 {[%emt 0:00:28]} 6. Nf3 {[%emt 0:00:14]} Bg4 {[%emt 0:01:28]} 7. Qb3 {[%emt 0:00:16]} Qc7 {[%emt 0:02:27]} 8. Ne5 {[%emt 0:16:13]} Nxe5 {[%emt 0:04:04]} 9. dxe5 {[%emt 0:00:13]} Qxe5+ {[%emt 0:00:43]} 10. Be3 {[%emt 0:00:15]} Qc7 {[%emt 0:06:45]} 11. Na3 {[%emt 0:01:32]} a6 {[%emt 0:04:47]} 12. c4 {[%emt 0:09:57]} e6 {[%emt 0:10:55]} 13. cxd5 {[%emt 0:10:08]} exd5 {[%emt 0:03:46]} 14. Rc1 {[%emt 0:04:50]} Qe5 {[%emt 0:05:19]} 15. h3 {[%emt 0:17:35]} Bd7 {[%emt 0:01:35]} 16. O-O {[%emt 0:00:20]} Bd6 {[%emt 0:01:19]} 17. g3 {[%emt 0:00:06]} Qh5 {[%emt 0:01:13]} 18. Bf4 {[%emt 0:15:18]} Bxf4 {[%emt 0:00:47]} 19. Rfe1+ {[%emt 0:00:06]} Be5 {[%emt 0:06:53]} 20. Qb4 {[%emt 0:06:25]} Be6 {[%emt 0:00:43]} 21. h4 {[%emt 0:05:58]} Rd8 {[%emt 0:03:11]} 22. Be2 {[%emt 0:01:24]} Qf5 {[%emt 0:04:43]} 23. Bb5+ {[%emt 0:02:37]} axb5 {[%emt 0:08:45]} 24. Nxb5 {[%emt 0:00:06]} Ne4 {[%emt 0:03:39]} 25. Re2 {[%emt 0:00:09]} Bd6 {[%emt 0:02:17]} 26. Nc7+ {[%emt 0:00:12]} Bxc7 {[%emt 0:01:02]} 27. Rxc7 {[%emt 0:00:05]} Nd6 {[%emt 0:00:28]} 28. g4 {[%emt 0:00:12]} Qf6 {[%emt 0:00:50]} 29. g5 {[%emt 0:00:10]} Qf5 {[%emt 0:00:16]} 30. Qa4+ {[%emt 0:01:21]} b5 {[%emt 0:00:22]} 31. Qd4 {[%emt 0:00:21]} O-O {[%emt 0:00:54]} 32. Rxe6 {[%emt 0:00:08]} Qxe6 {[%emt 0:00:14]} 0-1

[Event "FIN-ch 2018"]
[Site "Helsinki"]
[Date "2018.06.16"]
[Round "6"]
[White "Koykka, Pekka"]
[Black "Jarvenpaa, Jari"]
[Result "1-0"]
[ECO "D27"]
[WhiteElo "2345"]
[BlackElo "2310"]
[Annotator "NA"]
[PlyCount "79"]
[EventDate "2018.06.13"]
[EventType "tourn"]
[EventCountry "FIN"]
[SourceTitle "playchess.com"]
[Source "ChessBase"]
[SourceQuality "1"]
[TimeControl "40/5400+30:1800+30"]

1. d4 {[%emt 0:00:00]} d5 {[%emt 0:01:23]} 2. c4 {[%emt 0:00:00]} dxc4 {[%emt 0:00:17]} 3. e3 {[%emt 0:00:00]} Nf6 {[%emt 0:01:26]} 4. Bxc4 {[%emt 0:00:16]} e6 {[%emt 0:00:21]} 5. Nf3 {[%emt 0:00:17]} c5 {[%emt 0:00:19]} 6. O-O {[%emt 0:00:16]} a6 {[%emt 0:01:09]} 7. b3 {[%emt 0:00:26]} Nc6 {[%emt 0:02:42]} 8. Bb2 {[%emt 0:01:10]} Qc7 {[%emt 0:02:14]} 9. Nbd2 {[%emt 0:02:22]} cxd4 {[%emt 0:02:41]} 10. Nxd4 {[%emt 0:00:53]} Bd7 {[%emt 0:03:28]} 11. Rc1 {[%emt 0:08:47]} Bd6 {[%emt 0:03:59]} 12. N4f3 {[%emt 0:07:58]} O-O {[%emt 0:07:11]} 13. Bd3 {[%emt 0:09:36]} Be7 {[%emt 0:05:13]} 14. Bb1 {[%emt 0:03:06]} Rad8 {[%emt 0:06:38]} 15. Qc2 {[%emt 0:21:42]} g6 {[%emt 0:00:32]} 16. Ba1 {[%emt 0:07:00]} Nd5 {[%emt 0:07:11]} 17. Ne4 {[%emt 0:07:56]} Qa5 {[%emt 0:06:32]} 18. Nfd2 {[%emt 0:03:02]} b5 {[%emt 0:05:17]} 19. Qb2 {[%emt 0:01:37]} f6 {[%emt 0:04:03]} 20. Nc5 {[%emt 0:00:54]} Bxc5 {[%emt 0:06:24]} 21. Rxc5 {[%emt 0:00:10]} Nce7 {[%emt 0:03:28]} 22. Ne4 {[%emt 0:04:26]} e5 {[%emt 0:03:48]} 23. a3 {[%emt 0:06:22]} Qb6 {[%emt 0:00:59]} 24. b4 {[%emt 0:00:43]} Bf5 {[%emt 0:01:55]} 25. Qb3 {[%emt 0:03:26]} Qe6 {[%emt 0:04:44]} 26. Rcc1 {[%emt 0:01:53]} Nf4 {[%emt 0:07:47]} 27. Qxe6+ {[%emt 0:04:32]} Nxe6 {[%emt 0:00:16]} 28. Ba2 {[%emt 0:00:19]} Bxe4 {[%emt 0:04:58]} 29. Bxe6+ {[%emt 0:00:06]} Kh8 {[%emt 0:00:20]} 30. Rc7 {[%emt 0:02:47]} Nd5 {[%emt 0:01:20]} 31. Ra7 {[%emt 0:00:38]} Rd6 {[%emt 0:02:57]} 32. Bh3 {[%emt 0:02:01]} Bd3 {[%emt 0:03:35]} 33. Rd1 {[%emt 0:00:40]} Rc6 {[%emt 0:00:53]} 34. Rd7 {[%emt 0:00:52]} Bc4 {[%emt 0:00:10]} 35. g3 {[%emt 0:00:34]} Rb8 {[%emt 0:01:04]} 36. Bg2 {[%emt 0:00:25]} Rc7 {[%emt 0:00:40]} 37. R1xd5 {[%emt 0:00:21]} Bxd5 {[%emt 0:00:32]} 38. Rxc7 {[%emt 0:00:05]} Bxg2 {[%emt 0:00:08]} 39. Kxg2 {[%emt 0:00:04]} Rd8 {[%emt 0:00:07]} 40. Bc3 {[%emt 0:00:00]} 1-0

[Event "FIN-ch 2018"]
[Site "Helsinki"]
[Date "2018.06.16"]
[Round "6"]
[White "Keinanen, Toivo"]
[Black "Nyysti, Sampsa"]
[Result "1-0"]
[ECO "E06"]
[WhiteElo "2341"]
[BlackElo "2322"]
[Annotator "NA"]
[PlyCount "93"]
[EventDate "2018.06.13"]
[EventType "tourn"]
[EventCountry "FIN"]
[SourceTitle "playchess.com"]
[Source "ChessBase"]
[SourceQuality "1"]
[TimeControl "40/5400+30:1800+30"]

1. d4 {[%emt 0:00:00]} Nf6 {[%emt 0:00:10]} 2. c4 {[%emt 0:02:32]} e6 {[%emt 0:00:05]} 3. g3 {[%emt 0:00:15]} d5 {[%emt 0:00:14]} 4. Nf3 {[%emt 0:00:05]} Be7 {[%emt 0:00:10]} 5. Bg2 {[%emt 0:01:20]} O-O {[%emt 0:00:10]} 6. O-O {[%emt 0:00:03]} dxc4 {[%emt 0:00:10]} 7. Qc2 {[%emt 0:03:27]} a6 {[%emt 0:00:09]} 8. a4 {[%emt 0:00:08]} Bd7 {[%emt 0:01:15]} 9. Qxc4 {[%emt 0:00:42]} Bc6 {[%emt 0:00:07]} 10. Bf4 {[%emt 0:00:17]} Bd6 {[%emt 0:01:26]} 11. Qc1 {[%emt 0:00:04]} Bxf4 {[%emt 0:00:50]} 12. Qxf4 {[%emt 0:00:28]} Qd6 {[%emt 0:00:13]} 13. Nc3 {[%emt 0:09:41]} Nbd7 {[%emt 0:03:22]} 14. Rfc1 {[%emt 0:10:21]} Rac8 {[%emt 0:15:38]} 15. Qh4 {[%emt 0:07:15]} Bxf3 {[%emt 0:15:10]} 16. Bxf3 {[%emt 0:00:57]} c6 {[%emt 0:01:26]} 17. Qf4 {[%emt 0:11:43]} Qxf4 {[%emt 0:04:43]} 18. gxf4 {[%emt 0:00:14]} a5 {[%emt 0:08:37]} 19. Rcb1 {[%emt 0:16:39]} Nd5 {[%emt 0:13:44]} 20. Nxd5 {[%emt 0:01:01]} cxd5 {[%emt 0:00:30]} 21. b4 {[%emt 0:00:06]} axb4 {[%emt 0:19:16]} 22. Rxb4 {[%emt 0:00:14]} Rc7 {[%emt 0:00:06]} 23. Rab1 {[%emt 0:03:10]} b6 {[%emt 0:00:17]} 24. f5 {[%emt 0:03:13]} Rfc8 {[%emt 0:01:34]} 25. Bg4 {[%emt 0:02:48]} Rc1+ {[%emt 0:03:23]} 26. Kg2 {[%emt 0:03:24]} Rxb1 {[%emt 0:00:05]} 27. Rxb1 {[%emt 0:00:01]} Rc6 {[%emt 0:00:30]} 28. e4 {[%emt 0:05:00]} exf5 {[%emt 0:04:22]} 29. Bxf5 {[%emt 0:00:50]} Nf8 {[%emt 0:02:00]} 30. exd5 {[%emt 0:03:08]} Rc4 {[%emt 0:00:51]} 31. Rxb6 {[%emt 0:04:19]} Rxa4 {[%emt 0:02:19]} 32. d6 {[%emt 0:00:28]} Rxd4 {[%emt 0:00:07]} 33. d7 {[%emt 0:00:20]} Rxd7 {[%emt 0:00:41]} 34. Bxd7 {[%emt 0:00:05]} Nxd7 {[%emt 0:00:05]} 35. Rb7 {[%emt 0:01:35]} Nf8 {[%emt 0:00:09]} 36. Kg3 {[%emt 0:00:54]} g6 {[%emt 0:00:25]} 37. Kf4 {[%emt 0:01:38]} Kg7 {[%emt 0:01:12]} 38. Ke5 {[%emt 0:01:02]} h5 {[%emt 0:01:17]} 39. f4 {[%emt 0:06:50]} Nh7 {[%emt 0:00:10]} 40. f5 {[%emt 0:00:00]} g5 {[%emt 0:02:33]} 41. Rb6 {[%emt 0:03:39]} Nf8 {[%emt 0:13:15]} 42. Rd6 {[%emt 0:03:09]} Nh7 {[%emt 0:03:41]} 43. f6+ {[%emt 0:03:35]} Kh6 {[%emt 0:02:38]} 44. Rd8 {[%emt 0:01:34]} g4 {[%emt 0:00:25]} 45. Kf5 {[%emt 0:00:45]} Ng5 {[%emt 0:01:44]} 46. Rh8+ {[%emt 0:00:46]} Nh7 {[%emt 0:00:03]} 47. Rg8 {[%emt 0:00:16]} 1-0

[Event "FIN-ch 2018"]
[Site "Helsinki"]
[Date "2018.06.17"]
[Round "7"]
[White "Niemi, Kalle"]
[Black "Luukkonen, Tommi"]
[Result "0-1"]
[ECO "B90"]
[WhiteElo "2336"]
[BlackElo "2349"]
[Annotator "NA"]
[PlyCount "96"]
[EventDate "2018.06.13"]
[EventType "tourn"]
[EventCountry "FIN"]
[SourceTitle "playchess.com"]
[Source "ChessBase"]
[SourceQuality "1"]
[TimeControl "40/5400+30:1800+30"]

1. e4 {[%emt 0:00:00]} c5 {[%emt 0:00:06]} 2. Nf3 {[%emt 0:00:00]} d6 {[%emt 0:00:04]} 3. d4 {[%emt 0:00:00]} cxd4 {[%emt 0:00:04]} 4. Nxd4 {[%emt 0:00:00]} Nf6 {[%emt 0:00:03]} 5. Nc3 {[%emt 0:00:07]} a6 {[%emt 0:00:04]} 6. Be3 {[%emt 0:00:17]} e6 {[%emt 0:00:22] LiveBook: 6518 Games} 7. f3 {[%emt 0:00:15]} b5 {[%emt 0:00:05]} 8. Qd2 {[%emt 0:00:24]} b4 {[%emt 0:00:10] B80: Sicilian Scheveningen: 6 g3 and 6 Be3, including English Attack} 9. Nce2 {[%emt 0:01:12]} (9. Na4 Nbd7 10. O-O-O Qa5 11. b3 Bb7 12. a3 Qc7 13. axb4 d5 14. Bf2 Bd6 15. exd5 Nxd5 16. Bg3 {1-0 (36) Nakamura,H (2781)-Grandelius,N (2647) Caleta 2018}) 9... e5 {[%emt 0:00:09]} 10. Nb3 {[%emt 0:01:57]} a5 {[%emt 0:00:04]} 11. c4 {[%emt 0:03:58]} Be6 {[%emt 0:01:46]} 12. Rc1 $146 {[%emt 0:01:33]} ({Predecessor:} 12. Ng3 Nbd7 13. Nc1 h5 14. Bd3 h4 15. Nge2 Rc8 16. b3 {1-0 (52) Petenyi,T (2443)-Artemiev,V (2658) Novi Sad 2016}) 12... a4 {[%emt 0:02:20]} 13. Na1 {[%emt 0:00:11]} Nc6 {[%emt 0:01:09]} 14. Ng3 {[%emt 0:06:55]} Qa5 {[%emt 0:11:33]} 15. Bd3 {[%emt 0:02:35]} (15. Nf5 $11 {keeps the balance.}) 15... Be7 {[%emt 0:04:45]} 16. O-O {[%emt 0:00:44]} O-O {[%emt 0:01:33]} 17. Nf5 {[%emt 0:06:29]} Bxf5 $1 {[%emt 0:00:50]} 18. exf5 {[%emt 0:00:05]} Rfd8 {[%emt 0:10:02]} 19. Qf2 {[%emt 0:05:10]} Rab8 {[%emt 0:03:49]} 20. g4 {[%emt 0:01:02]} e4 {[%emt 0:03:12]} 21. Bxe4 {[%emt 0:02:45]} Ne5 {[%emt 0:08:22]} 22. Bb1 {[%emt 0:02:02]} d5 {[%emt 0:03:30]} 23. g5 {[%emt 0:05:53]} d4 {[%emt 0:02:10]} 24. Bd2 {[%emt 0:03:51]} Nh5 {[%emt 0:06:44]} (24... d3 $16 25. gxf6 Bxf6) 25. Qh4 {[%emt 0:05:18]} g6 {[%emt 0:00:46]} 26. f4 {[%emt 0:02:56]} d3 {[%emt 0:10:30]} 27. fxe5 {[%emt 0:09:33] [#]} Bc5+ $1 {[%emt 0:01:14]} 28. Kg2 {[%emt 0:01:18] [#]} Qa8+ $1 {[%emt 0:00:38]} 29. Rf3 {[%emt 0:00:34] [#]} Rd4 $1 {[%emt 0:00:09]} 30. Qh3 {[%emt 0:00:36]} Rf4 {[%emt 0:02:45]} 31. Re1 {[%emt 0:04:10]} Rd8 {[%emt 0:01:21]} 32. e6 {[%emt 0:05:10]} fxe6 {[%emt 0:01:33]} 33. fxg6 {[%emt 0:05:14]} hxg6 {[%emt 0:00:20]} 34. Rxe6 {[%emt 0:02:49]} Kg7 $18 {[%emt 0:02:28]} 35. Qxh5 {[%emt 0:10:12]} gxh5 {[%emt 0:00:12]} 36. Bxf4 {[%emt 0:00:09]} Kf7 {[%emt 0:02:49]} 37. Rh6 {[%emt 0:03:50]} Ke7 {[%emt 0:02:27]} 38. Kg3 {[%emt 0:02:32]} Qe4 {[%emt 0:01:12]} 39. Rxh5 {[%emt 0:04:07]} Qe1+ {[%emt 0:00:30]} 40. Kh3 {[%emt 0:00:00]} Qxb1 {[%emt 0:00:54]} 41. Rh7+ {[%emt 0:06:50]} Ke6 {[%emt 0:03:09]} 42. Rh6+ {[%emt 0:14:21]} Kd7 {[%emt 0:00:32]} 43. g6 {[%emt 0:08:18]} Bd4 {[%emt 0:02:25]} 44. Rh7+ {[%emt 0:02:38]} Kc6 {[%emt 0:01:03]} 45. g7 {[%emt 0:02:00]} Rg8 {[%emt 0:02:15]} 46. Rh6+ {[%emt 0:01:26]} Kb7 {[%emt 0:02:19]} 47. Be5 {[%emt 0:00:19]} Bxe5 {[%emt 0:00:26]} 48. Rf7+ {[%emt 0:00:04]} Bc7 0-1

[Event "FIN-ch 2018"]
[Site "Helsinki"]
[Date "2018.06.17"]
[Round "7"]
[White "Nyysti, Sampsa"]
[Black "Koykka, Pekka"]
[Result "1/2-1/2"]
[ECO "C17"]
[WhiteElo "2322"]
[BlackElo "2345"]
[Annotator "NA"]
[PlyCount "83"]
[EventDate "2018.06.13"]
[EventType "tourn"]
[EventCountry "FIN"]
[SourceTitle "playchess.com"]
[Source "ChessBase"]
[SourceQuality "1"]
[TimeControl "40/5400+30:1800+30"]

1. e4 {[%emt 0:00:00]} e6 {[%emt 0:00:11]} 2. d4 {[%emt 0:00:00]} d5 {[%emt 0:00:05]} 3. Nc3 {[%emt 0:00:00]} Bb4 {[%emt 0:00:11]} 4. e5 {[%emt 0:00:00]} c5 {[%emt 0:00:13]} 5. a3 {[%emt 0:00:08]} Ba5 {[%emt 0:00:12]} (5... Bxc3+ $5 6. bxc3 Ne7 $11) 6. b4 {[%emt 0:03:51]} cxd4 {[%emt 0:00:33]} 7. Qg4 {[%emt 0:13:18]} Kf8 {[%emt 0:00:23] LiveBook: 69 Games C18: French: 3 Nc3 Bb4: Main line: 7 h4 and 7 Qg4} 8. Qxd4 {[%emt 0:08:22]} (8. Nb5 Bc7 9. Qg3 Nc6 10. f4 a6 11. Nxc7 Qxc7 12. Bb2 Nge7 13. Bd3 Nf5 14. Qf2 Bd7 15. Nf3 {1-0 (29) Fedoseev,V (2724)-Mamedyarov,S (2809) Moscow 2018}) 8... Bb6 {[%emt 0:05:18]} 9. Qd2 $146 {[%emt 0:00:07]} ({Predecessor:} 9. Qf4 Ne7 10. Bd3 Ng6 11. Bxg6 hxg6 12. Nf3 Kg8 13. Nb5 Qe7 14. Bb2 Nd7 15. c4 {½-½ (54) Bodnaruk,A (2428)-Bivol,A (2354) Kaliningrad 2015}) 9... Nc6 {[%emt 0:01:53]} 10. Nf3 {[%emt 0:05:43]} Nge7 {[%emt 0:04:54]} 11. Bb2 {[%emt 0:03:14]} Ng6 {[%emt 0:03:03]} 12. O-O-O {[%emt 0:05:06]} Bc7 {[%emt 0:08:45]} 13. Nb5 {[%emt 0:09:05]} Bb8 {[%emt 0:11:24]} 14. Qe3 {[%emt 0:06:03]} a6 {[%emt 0:09:56]} 15. Nbd4 {[%emt 0:02:03]} Ncxe5 {[%emt 0:05:55]} 16. Nxe5 {[%emt 0:00:31]} Bxe5 {[%emt 0:00:53]} 17. Nxe6+ {[%emt 0:01:38]} Bxe6 {[%emt 0:00:55]} 18. Bxe5 {[%emt 0:00:07]} Nxe5 {[%emt 0:00:33]} 19. Qxe5 {[%emt 0:00:02]} a5 {[%emt 0:05:20]} 20. Qd4 {[%emt 0:14:27]} h5 {[%emt 0:08:55]} 21. Kb2 {[%emt 0:08:26]} Rh6 {[%emt 0:08:01]} 22. Bc4 {[%emt 0:02:57]} Qc7 {[%emt 0:07:08]} 23. Bb3 {[%emt 0:01:09]} Rf6 {[%emt 0:00:46]} 24. g3 $11 {[%emt 0:01:02]} Bg4 {[%emt 0:08:22]} 25. Rd3 {[%emt 0:03:04]} Bf3 {[%emt 0:00:27]} 26. Re1 {[%emt 0:00:26]} Be4 {[%emt 0:00:57]} 27. Rc3 {[%emt 0:00:20]} Qd6 {[%emt 0:00:18]} 28. f4 {[%emt 0:03:12]} axb4 {[%emt 0:00:37]} 29. Qxb4 {[%emt 0:00:24]} Qxb4 {[%emt 0:00:23]} 30. axb4 {[%emt 0:00:02]} Rb6 {[%emt 0:00:08]} 31. Rc5 {[%emt 0:03:23]} Rxb4 {[%emt 0:00:21]} 32. Kc3 {[%emt 0:00:11]} Rb6 {[%emt 0:02:36]} 33. Bxd5 {[%emt 0:00:11]} Bxd5 {[%emt 0:00:19]} 34. Rxd5 {[%emt 0:00:01]} g6 {[%emt 0:03:58]} 35. Rd7 {[%emt 0:00:37]} h4 {[%emt 0:00:25]} 36. Kd2 {[%emt 0:02:32]} Ra3 {[%emt 0:01:49]} 37. Re3 {[%emt 0:01:06]} Rxe3 {[%emt 0:00:43]} 38. Kxe3 {[%emt 0:00:04]} Re6+ {[%emt 0:00:34]} 39. Kf3 {[%emt 0:01:17]} hxg3 {[%emt 0:01:01]} 40. hxg3 {[%emt 0:00:00]} Rc6 {[%emt 0:00:10]} 41. Rxb7 {[%emt 0:00:19]} Rxc2 {[%emt 0:00:44]} 42. Ke4 1/2-1/2

[Event "FIN-ch 2018"]
[Site "Helsinki"]
[Date "2018.06.17"]
[Round "7"]
[White "Jarvenpaa, Jari"]
[Black "Sipila, Vilka"]
[Result "0-1"]
[ECO "A05"]
[WhiteElo "2310"]
[BlackElo "2383"]
[Annotator "NA"]
[PlyCount "70"]
[EventDate "2018.06.13"]
[EventType "tourn"]
[EventCountry "FIN"]
[SourceTitle "playchess.com"]
[Source "ChessBase"]
[SourceQuality "1"]
[TimeControl "40/5400+30:1800+30"]

1. Nf3 {[%emt 0:00:00]} Nf6 {[%emt 0:00:13]} 2. c4 {[%emt 0:00:00]} g6 {[%emt 0:00:06]} 3. Nc3 {[%emt 0:00:08]} Bg7 {[%emt 0:00:04]} 4. e4 {[%emt 0:01:00]} d6 {[%emt 0:00:05]} 5. d4 {[%emt 0:00:07]} O-O {[%emt 0:00:06]} 6. h3 {[%emt 0:00:04]} e5 {[%emt 0:00:19]} 7. d5 {[%emt 0:00:24]} Na6 {[%emt 0:00:11]} 8. Bd3 {[%emt 0:02:25]} Nh5 {[%emt 0:00:49] LiveBook: 16 Games E90: King's Indian: Classical: Early deviations and 6 h3} 9. g3 {[%emt 0:02:45]} (9. O-O Nc5 10. Bc2 a5 11. Re1 Bd7 12. Rb1 Qe8 13. Be3 b6 14. a3 a4 15. Nd2 Kh8 16. Qe2 {0-1 (56) Morozevich,A (2788)-Grischuk,A (2728) Moscow 2008}) 9... f5 {[%emt 0:00:23]} 10. exf5 {[%emt 0:01:26]} gxf5 {[%emt 0:00:12]} 11. Nh4 {[%emt 0:13:52]} Nf4 {[%emt 0:11:41]} 12. Bxf4 $146 {[%emt 0:06:31]} ({Predecessor:} 12. Bc2 Qf6 13. Bxf4 exf4 14. O-O Bd7 15. Ng2 fxg3 16. fxg3 {0-1 (61) Johansson,T (2173)-Markidis,K (2342) Sunny Beach 2010}) 12... exf4 {[%emt 0:00:06]} 13. Qh5 {[%emt 0:03:58]} Nb4 {[%emt 0:06:45]} 14. O-O-O {[%emt 0:09:11]} Qf6 {[%emt 0:01:06]} 15. Kb1 {[%emt 0:00:38]} fxg3 {[%emt 0:25:45]} 16. fxg3 {[%emt 0:00:46]} Bd7 {[%emt 0:03:42]} 17. Rhf1 {[%emt 0:13:31]} Nxd3 {[%emt 0:00:12]} 18. Rxd3 {[%emt 0:00:03]} Rae8 {[%emt 0:01:57]} 19. g4 {[%emt 0:08:48]} f4 {[%emt 0:00:39]} 20. Rdf3 {[%emt 0:06:48]} Re5 {[%emt 0:12:44]} 21. Nf5 {[%emt 0:00:18] [#]} Bxf5+ $2 {[%emt 0:00:15]} (21... Be8 $1 $19 {[%cal Re8h5] is more deadly.} 22. Nxg7 Bxh5 23. Nxh5 Qg6+ 24. Kc1 Re3 25. Rxf4 Rxf4 26. Nxf4 Qf6) 22. gxf5 {[%emt 0:00:10]} Rxf5 {[%emt 0:01:08]} 23. Qg4 {[%emt 0:01:34]} Qd4 {[%emt 0:00:24]} 24. Rg1 {[%emt 0:03:12]} Kh8 {[%emt 0:02:03]} 25. Qg2 {[%emt 0:03:31]} Re8 {[%emt 0:01:06]} 26. a3 {[%emt 0:02:56]} Rf7 {[%emt 0:04:13]} 27. Qf1 {[%emt 0:03:54]} Rfe7 {[%emt 0:01:01]} 28. Rh1 {[%emt 0:00:28]} (28. Qd1 $142) 28... Re2 {[%emt 0:00:23]} 29. Qc1 {[%emt 0:03:22]} R2e3 {[%emt 0:06:55]} 30. Rxe3 {[%emt 0:01:41]} Rxe3 {[%emt 0:00:06]} 31. Nb5 {[%emt 0:03:20]} Qd3+ {[%emt 0:00:50]} 32. Qc2 {[%emt 0:00:42]} Rxh3 $17 {[%emt 0:04:09]} ({Black should play} 32... Qe2 $19 33. Qxe2 Rxe2) 33. Rxh3 {[%emt 0:03:57]} Qxh3 {[%emt 0:00:07]} 34. Qe4 {[%emt 0:00:48]} Be5 {[%emt 0:00:11]} 35. c5 {[%emt 0:01:34]} Qf1+ {[%emt 0:00:13]} 0-1

[Event "FIN-ch 2018"]
[Site "Helsinki"]
[Date "2018.06.18"]
[Round "8"]
[White "Sipila, Vilka"]
[Black "Nyysti, Sampsa"]
[Result "1-0"]
[ECO "E20"]
[WhiteElo "2383"]
[BlackElo "2322"]
[Annotator "NA"]
[PlyCount "109"]
[EventDate "2018.06.13"]
[EventType "tourn"]
[EventCountry "FIN"]
[SourceTitle "playchess.com"]
[Source "ChessBase"]
[SourceQuality "1"]
[TimeControl "40/5400+30:1800+30"]

1. d4 {[%emt 0:00:34]} Nf6 {[%emt 0:00:02]} 2. c4 {[%emt 0:00:19]} e6 {[%emt 0:00:07]} 3. Nc3 {[%emt 0:00:05]} Bb4 {[%emt 0:00:18]} 4. f3 {[%emt 0:00:15]} c5 {[%emt 0:00:17]} 5. d5 {[%emt 0:00:15]} d6 {[%emt 0:00:24]} 6. e4 {[%emt 0:01:20]} b5 {[%emt 0:00:42] E20: Nimzo-Indian: 4 g3 and 4 f3} (6... O-O 7. Nge2 b5 8. Ng3 exd5 9. cxd5 a6 10. a4 Ba5 11. Be2 Nbd7 12. O-O c4 13. Kh1 Rb8 14. axb5 axb5 15. Nf5 Nc5 16. Rxa5 Qxa5 {1-0 (37) Mamedyarov,S (2772)-Li,R (2577) chess.com INT 2017}) 7. Nge2 {[%emt 0:00:23]} bxc4 {[%emt 0:02:48]} 8. Nf4 {[%emt 0:00:26]} e5 {[%emt 0:06:19]} 9. Nfe2 {[%emt 0:00:08]} Nbd7 {[%emt 0:08:37]} 10. Ng3 {[%emt 0:01:18]} Nb6 {[%emt 0:02:14]} 11. Be2 {[%emt 0:00:16]} Qe7 $146 {[%emt 0:11:22]} ({Predecessor:} 11... g6 12. O-O Bxc3 13. bxc3 Nfd7 14. a4 {1-0 (32) Adhiban,B (2643)-Laxman,R (2456) Bhubaneswar 2018}) 12. O-O {[%emt 0:00:40]} h5 {[%emt 0:23:12]} 13. Bg5 {[%emt 0:02:10]} h4 {[%emt 0:00:25]} 14. Nh1 {[%emt 0:00:43]} Rh5 {[%emt 0:08:53]} 15. Qc1 {[%emt 0:11:21]} Bd7 {[%emt 0:01:54]} 16. Nf2 {[%emt 0:00:37]} O-O-O {[%emt 0:01:19]} 17. f4 {[%emt 0:02:42]} Rxg5 {[%emt 0:00:07]} 18. fxg5 {[%emt 0:00:10]} Nh7 {[%emt 0:00:07]} 19. Ncd1 {[%emt 0:08:42]} Qxg5 {[%emt 0:00:53]} 20. Ne3 {[%emt 0:00:23]} Kb8 $16 {[%emt 0:16:29]} 21. a3 {[%emt 0:13:45]} Ba5 {[%emt 0:00:19]} 22. Bxc4 {[%emt 0:00:15]} Nxc4 {[%emt 0:03:48]} 23. Nxc4 {[%emt 0:00:09]} Qxc1 {[%emt 0:00:11]} 24. Rfxc1 {[%emt 0:02:22]} Bc7 {[%emt 0:00:06]} 25. b4 {[%emt 0:00:09]} cxb4 {[%emt 0:00:19]} 26. Rab1 {[%emt 0:00:11]} Ka8 {[%emt 0:06:01]} 27. Nxe5 {[%emt 0:00:30]} Bb6 {[%emt 0:00:07]} 28. Nxd7 {[%emt 0:03:34]} Rxd7 {[%emt 0:00:05]} 29. Rxb4 {[%emt 0:00:19]} Nf6 {[%emt 0:00:25]} 30. Rc6 {[%emt 0:02:08]} Rd8 {[%emt 0:02:20]} 31. Kf1 {[%emt 0:00:46]} Bc5 {[%emt 0:00:27]} 32. Ra4 {[%emt 0:00:22]} Kb7 {[%emt 0:00:46]} 33. Nd3 {[%emt 0:01:09]} Bb6 {[%emt 0:00:10]} 34. Ke2 {[%emt 0:00:29]} Re8 {[%emt 0:04:02]} 35. Kf3 {[%emt 0:00:32]} Nxd5 {[%emt 0:00:10]} 36. Rxd6 {[%emt 0:02:11]} Nf6 {[%emt 0:00:21]} 37. e5 {[%emt 0:01:00]} Bc7 {[%emt 0:00:21]} 38. Rb4+ {[%emt 0:00:04]} Kc8 {[%emt 0:00:29]} 39. Rc4 {[%emt 0:00:11]} Kb7 {[%emt 0:00:57]} 40. Rb4+ {[%emt 0:00:00]} Kc8 {[%emt 0:00:02]} 41. Rc6 {[%emt 0:08:02]} Nd5 {[%emt 0:01:25]} 42. Rxh4 {[%emt 0:01:05]} Ne7 {[%emt 0:04:18]} 43. Rc3 {[%emt 0:01:31]} Ng6 {[%emt 0:00:07]} 44. Rhc4 {[%emt 0:01:27]} Re7 {[%emt 0:00:05]} 45. h4 {[%emt 0:00:26]} Kd8 {[%emt 0:00:24]} 46. h5 {[%emt 0:01:50]} Nxe5+ {[%emt 0:00:10]} 47. Nxe5 {[%emt 0:00:05]} Bxe5 {[%emt 0:00:04]} 48. Rd3+ {[%emt 0:00:06]} Rd7 {[%emt 0:00:27]} 49. Rxd7+ {[%emt 0:00:05]} Kxd7 {[%emt 0:00:02]} 50. Ra4 {[%emt 0:00:16]} Bb8 {[%emt 0:00:12]} 51. Ke4 {[%emt 0:00:05]} Ke6 {[%emt 0:00:24]} 52. Ra6+ {[%emt 0:00:05]} Ke7 {[%emt 0:00:04]} 53. Kf5 {[%emt 0:00:30]} Kd7 {[%emt 0:00:43]} 54. Ra4 {[%emt 0:00:12]} Ke7 {[%emt 0:00:11]} 55. Rb4 {[%emt 0:00:25]} 1-0

[Event "FIN-ch 2018"]
[Site "Helsinki"]
[Date "2018.06.18"]
[Round "8"]
[White "Luukkonen, Tommi"]
[Black "Jarvenpaa, Jari"]
[Result "0-1"]
[ECO "B10"]
[WhiteElo "2349"]
[BlackElo "2310"]
[Annotator "NA RC"]
[PlyCount "31"]
[EventDate "2018.06.13"]
[EventType "tourn"]
[EventCountry "FIN"]
[SourceTitle "playchess.com"]
[Source "ChessBase"]
[SourceQuality "1"]
[TimeControl "40/5400+30:1800+30"]

{[%evp 16,29,0,-8,44,-226,-230,-237,-243,-340,-328,32767,32767,32767,32767,-818]} 1. e4 {[%emt 0:01:59]} c6 {[%emt 0:00:38]} 2. Nc3 {[%emt 0:00:28]} d5 {[%emt 0:00:10]} 3. Nf3 {[%emt 0:00:05]} dxe4 {[%emt 0:00:16]} 4. Nxe4 {[%emt 0:00:06]} Nf6 {[%emt 0:00:07]} 5. Qe2 {[%emt 0:01:18]} Bf5 {[%emt 0:03:03]} 6. Nxf6+ {[%emt 0:06:59]} gxf6 {[%emt 0:00:02]} 7. b3 {[%emt 0:00:31]} e6 {[%emt 0:02:52]} 8. Bb2 {[%emt 0:01:25]} Nd7 {[%emt 0:01:26]} (8... Bxc2 $17 9. Qc4 Bg6) 9. Nd4 {[%emt 0:00:49]} Qa5 {[%emt 0:04:05]} (9... Bg6 $11) 10. O-O-O $2 {[%emt 0:13:40]} (10. Nxf5 $14 Qxf5 11. O-O-O) 10... Qxa2 {[%emt 0:09:13]} 11. b4 {[%emt 0:00:56]} ({Aber nicht} 11. Nxf5 $2 Ba3 $19) 11... Bxb4 {[%emt 0:05:06]} 12. Qe3 {[%emt 0:02:29]} Bg6 {[%emt 0:03:04]} 13. f4 {[%emt 0:01:49]} O-O-O {[%emt 0:06:59]} 14. g4 {[%emt 0:05:41]} Be4 {[%emt 0:08:52]} 15. Rg1 $19 {[%emt 0:08:13]} ({Avoid the trap} 15. Qxe4 $2 Ba3) (15. Bc4 $142 Qxc4 16. d3) 15... Nc5 {[%emt 0:07:35]} 16. Ne2 {[%emt 0:00:27]} 0-1